bitfinex-derivatives/quotes_SOLF0:USTF0_20250419
["timestamp","ask_amount","ask_price","bid_price","bid_amount"]
[1745103345239,30.84229124,139.46,139.39,5.74229124]
[1745103345437,7.1725,139.45,139.39,5.74229124]
[1745103345838,30.84229124,139.46,139.39,5.74229124]
[1745103346034,7.1728,139.44,139.39,5.74229124]
[1745103346241,30.84229124,139.46,139.39,5.74229124]
[1745103346540,7.1726,139.45,139.39,5.74229124]
[1745103355349,7.1728,139.44,139.39,5.74229124]
[1745103357649,7.1726,139.45,139.39,5.74229124]
[1745103360149,7.1726,139.45,139.41,5.74229124]
[1745103360345,32.272,139.46,139.41,5.74229124]
[1745103360751,25.1,139.46,139.41,30.70229124]
[1745103361051,11.0481,139.47,139.43,5.74229124]
[1745103361253,3.8766,139.47,139.43,5.74229124]
[1745103361448,2.0153,139.47,139.43,5.74229124]
[1745103376863,7.1708,139.48,139.43,5.74229124]
[1745103381367,32.1305,139.49,139.43,5.74229124]
[1745103385973,7.1708,139.48,139.43,5.74229124]
[1745103390074,7.1714,139.47,139.43,5.74229124]
[1745103392176,7.1707,139.48,139.43,5.74229124]
[1745103401485,7.1707,139.48,139.45,5.74229124]
[1745103401685,32.1305,139.49,139.45,5.74229124]
[1745103416705,24.96,139.49,139.45,5.74229124]
[1745103417406,7.1699,139.5,139.45,5.74229124]
[1745103439621,30.5729,139.51,139.44,5.74229124]
[1745103440923,5.74229124,139.5,139.44,5.74229124]
[1745103441225,7.1708,139.48,139.44,5.74229124]
[1745103447325,30.68229124,139.48,139.42,24.94]
[1745103447628,30.68229124,139.48,139.42,5.74229124]
[1745103447928,3.9451,139.47,139.42,5.74229124]
[1745103449326,7.1724,139.45,139.42,5.74229124]
[1745103449929,3.9451,139.47,139.42,5.74229124]
[1745103450130,7.72639124,139.46,139.4,5.74229124]
[1745103450430,7.173,139.44,139.4,5.74229124]
[1745103453428,7.1736,139.43,139.4,5.74229124]
[1745103470242,24.94,139.45,139.4,5.74229124]
[1745103470450,24.94,139.45,139.42,5.74229124]
[1745103471244,3.9451,139.47,139.42,5.74229124]
[1745103471448,30.68229124,139.48,139.42,5.74229124]
[1745103471640,32.111,139.48,139.44,5.74229124]
[1745103471844,24.94,139.48,139.44,5.74229124]
[1745103472953,32.1107,139.48,139.44,5.74229124]
[1745103473151,24.94,139.48,139.44,5.74229124]
[1745103473352,24.94,139.51,139.46,5.74229124]
[1745103473554,24.94,139.51,139.48,5.74229124]
[1745103474853,24.94,139.54,139.48,5.74229124]
[1745103482555,24.94,139.54,139.5,5.74229124]
[1745103483454,5.74229124,139.56,139.5,5.74229124]
[1745103483660,592.92,139.57,139.52,5.74229124]
[1745103485663,24.94,139.57,139.52,5.74229124]
[1745103486163,1.24720007,139.65,139.54,5.74229124]
[1745103486357,5.74229124,139.63,139.56,5.74229124]
[1745103487158,26.8394,139.65,139.56,5.74229124]
[1745103487358,5.74229124,139.62,139.56,5.74229124]
[1745103489563,24.92,139.63,139.54,5.9035]
[1745103489762,30.66229124,139.63,139.57,5.74229124]
[1745103492968,30.66229124,139.63,139.57,12.90829124]
[1745103495971,30.66229124,139.63,139.57,5.74229124]
[1745103496467,5.74229124,139.63,139.57,5.74229124]
[1745103496673,24.92,139.62,139.57,5.74229124]
[1745103498777,5.74229124,139.61,139.55,5.74229124]
[1745103499074,7.68819124,139.61,139.55,5.74229124]
[1745103500974,5.74229124,139.59,139.54,5.74229124]
[1745103501176,24.92,139.58,139.54,5.74229124]
[1745103512286,24.92,139.58,139.53,5.74229124]
[1745103521894,24.92,139.58,139.55,5.74229124]
[1745103522093,1.8432,139.6,139.55,5.74229124]
[1745103522597,1.8432,139.6,139.56,7.1663]
[1745103530102,7.58549124,139.6,139.55,12.90909124]
[1745103530298,7.58549124,139.6,139.54,24.92]
[1745103530498,7.58549124,139.6,139.53,5.74229124]
[1745103530803,7.58549124,139.6,139.53,12.91009124]
[1745103534105,7.58549124,139.6,139.54,7.1676]
[1745103534299,7.58549124,139.6,139.53,5.74229124]
[1745103534808,7.58549124,139.6,139.53,12.91019124]
[1745103535400,5.74229124,139.58,139.53,12.91019124]
[1745103535601,30.66229124,139.58,139.53,12.91019124]
[1745103537005,30.66229124,139.58,139.54,7.1674]
[1745103537408,24.92,139.58,139.54,7.1674]
[1745103537707,24.92,139.58,139.55,7.1671]
[1745103540409,24.92,139.58,139.54,7.1674]
[1745103543013,32.086,139.58,139.54,7.1674]
[1745103543209,24.92,139.58,139.55,7.1668]
[1745103546014,7.1654,139.59,139.55,7.1668]
[1745103546213,32.0854,139.59,139.55,7.1668]
[1745103548617,24.92,139.59,139.56,7.1665]
[1745103549512,24.92,139.59,139.57,7.1658]
[1745103549711,24.92,139.61,139.55,5.74229124]
[1745103550112,24.92,139.61,139.55,11.61599124]
[1745103550319,24.92,139.61,139.58,7.1653]
[1745103550617,24.92,139.61,139.57,5.74229124]
[1745103550814,5.74229124,139.64,139.59,5.74229124]
[1745103551319,12.90499124,139.64,139.59,5.74229124]
[1745103552116,5.74229124,139.64,139.59,5.74229124]
[1745103552317,592.34,139.65,139.59,5.74229124]
[1745103552518,24.92,139.65,139.59,5.74229124]
[1745103552718,32.082,139.65,139.61,7.1636]
[1745103553116,32.082,139.65,139.59,5.74229124]
[1745103553324,16.68099124,139.67,139.63,7.1627]
[1745103553717,10.9387,139.67,139.63,7.1627]
[1745103553923,16.68099124,139.67,139.63,7.1627]
[1745103554620,7.1612,139.67,139.63,7.1627]
[1745103554919,5.74229124,139.67,139.64,7.1622]
[1745103555419,5.74229124,139.67,139.65,7.1618]
[1745103556223,5.74229124,139.67,139.6,30.66229124]
[1745103556522,5.74229124,139.65,139.6,30.66229124]
[1745103557423,5.74229124,139.65,139.63,7.1628]
[1745103558823,12.90379124,139.66,139.63,7.1628]
[1745103559826,5.74229124,139.66,139.61,1.8616]
[1745103565727,12.90379124,139.66,139.61,1.8616]
[1745103566128,24.92,139.68,139.61,1.8616]
[1745103566330,5.74229124,139.66,139.61,1.8616]
[1745103568035,12.90409124,139.66,139.61,1.8616]
[1745103571537,7.1621,139.65,139.61,1.8616]
[1745103576133,7.1621,139.65,139.6,30.66229124]
[1745103576638,7.1628,139.64,139.6,30.66229124]
[1745103578537,7.1622,139.65,139.6,30.66229124]
[1745103578740,5.74229124,139.66,139.6,30.66229124]
[1745103579738,7.1622,139.65,139.6,30.66229124]
[1745103580434,5.74229124,139.64,139.6,24.92]
[1745103580637,5.74229124,139.64,139.58,5.74229124]
[1745103581439,12.90519124,139.64,139.58,5.74229124]
[1745103581642,5.74229124,139.64,139.58,5.74229124]
[1745103582233,5.74229124,139.62,139.56,5.74229124]
[1745103582439,30.64229124,139.62,139.56,5.74229124]
[1745103582944,7.1641,139.61,139.56,5.74229124]
[1745103583335,7.1651,139.59,139.5,1.9732]
[1745103583643,5.74229124,139.6,139.54,5.74229124]
[1745103584643,12.90709124,139.6,139.54,5.74229124]
[1745103584844,5.74229124,139.6,139.54,30.64229124]
[1745103585044,30.64229124,139.62,139.56,5.74229124]
[1745103585343,37.80609124,139.62,139.56,5.74229124]
[1745103587042,7.1641,139.61,139.56,5.74229124]
[1745103587543,37.80609124,139.62,139.56,5.74229124]
[1745103587849,30.64229124,139.62,139.56,5.74229124]
[1745103588144,37.80609124,139.62,139.56,5.74229124]
[1745103588646,7.1641,139.61,139.56,5.74229124]
[1745103591247,37.80609124,139.62,139.56,5.74229124]
[1745103591448,30.64229124,139.62,139.56,5.74229124]
[1745103591845,37.80619124,139.62,139.56,5.74229124]
[1745103592748,7.1641,139.61,139.56,5.74229124]
[1745103593049,7.1641,139.61,139.54,24.9]
[1745103593240,7.1641,139.61,139.56,5.74229124]
[1745103601455,5.74229124,139.6,139.54,24.9]
[1745103602061,7.1654,139.59,139.54,24.9]
[1745103602262,7.1654,139.59,139.54,30.64229124]
[1745103602861,5.8315,139.61,139.56,5.74229124]
[1745103603762,7.1646,139.6,139.56,5.74229124]
[1745103604461,12.9958,139.61,139.56,5.74229124]
[1745103607862,7.1646,139.6,139.56,5.74229124]
[1745103608664,18.73809124,139.61,139.56,5.74229124]
[1745103611369,7.1646,139.6,139.56,5.74229124]
[1745103616570,18.73809124,139.61,139.56,5.74229124]
[1745103617171,7.1646,139.6,139.56,5.74229124]
[1745103617871,18.73809124,139.61,139.56,5.74229124]
[1745103618869,5.74229124,139.59,139.54,30.64229124]
[1745103631082,24.9,139.6,139.54,30.64229124]
[1745103637890,24.9,139.6,139.54,5.74229124]
[1745103642596,41.66139124,139.61,139.54,5.74229124]
[1745103649904,5.74229124,139.59,139.53,30.64229124]
[1745103650100,5.74229124,139.57,139.53,24.9]
[1745103650403,5.74229124,139.55,139.49,391.64229124]
[1745103651003,7.1668,139.56,139.51,5.74229124]
[1745103651301,5.74229124,139.55,139.5,5.74229124]
[1745103653004,32.0662,139.57,139.5,5.74229124]
[1745103653206,5.74229124,139.56,139.5,5.74229124]
[1745103653602,12.90889124,139.56,139.5,5.74229124]
[1745103655907,5.74229124,139.56,139.5,5.74229124]
[1745103659408,12.90899124,139.56,139.5,5.74229124]
[1745103660912,5.74229124,139.56,139.5,5.74229124]
[1745103664812,24.9,139.57,139.52,5.74229124]
[1745103665009,24.9,139.57,139.54,5.74229124]
[1745103665215,30.64229124,139.6,139.54,5.74229124]
[1745103665716,24.9,139.6,139.56,5.74229124]
[1745103666112,1.8325,139.66,139.58,5.74229124]
[1745103666317,32.0628,139.64,139.58,5.74229124]
[1745103673923,7.1631,139.63,139.58,5.74229124]
[1745103674126,12.90539124,139.63,139.57,5.74229124]
[1745103682327,5.74229124,139.63,139.57,5.74229124]
[1745103685634,12.90539124,139.63,139.57,5.74229124]
[1745103689337,24.9,139.67,139.61,5.74229124]
[1745103689530,5.74229124,139.66,139.61,5.74229124]
[1745103689931,5.74229124,139.66,139.59,30.64229124]
[1745103691133,7.162,139.65,139.59,30.64229124]
[1745103692432,12.90389124,139.66,139.59,30.64229124]
[1745103694038,7.162,139.65,139.59,30.64229124]
[1745103695540,7.162,139.65,139.61,5.74229124]
[1745103698146,12.90399124,139.66,139.61,5.74229124]
[1745103698744,7.162,139.65,139.61,5.74229124]
[1745103702448,12.90389124,139.66,139.61,5.74229124]
[1745103711153,5.74229124,139.66,139.61,5.74229124]
[1745103711348,37.80359124,139.67,139.61,5.74229124]
[1745103712254,7.1616,139.66,139.61,5.74229124]
[1745103713356,37.80349124,139.67,139.61,5.74229124]
[1745103714055,7.1616,139.66,139.61,5.74229124]
[1745103714952,30.64229124,139.67,139.61,5.74229124]
[1745103715857,7.1616,139.66,139.61,5.74229124]
[1745103717657,37.80349124,139.67,139.61,5.74229124]
[1745103718359,7.1617,139.66,139.61,5.74229124]
[1745103718856,7.1621,139.65,139.61,5.74229124]
[1745103719055,12.90439124,139.65,139.61,5.74229124]
[1745103719460,5.74229124,139.65,139.61,5.74229124]
[1745103726563,24.9,139.67,139.61,5.74229124]
[1745103726865,37.80349124,139.67,139.61,5.74229124]
[1745103727461,7.1615,139.66,139.61,5.74229124]
[1745103727870,30.64229124,139.67,139.61,5.74229124]
[1745103728269,37.80369124,139.67,139.61,5.74229124]
[1745103729066,30.64229124,139.67,139.61,5.74229124]
[1745103730272,37.80329124,139.67,139.61,5.74229124]
[1745103732973,37.80349124,139.67,139.61,5.74229124]
[1745103733168,30.64229124,139.67,139.61,5.74229124]
[1745103733473,7.1618,139.66,139.61,5.74229124]
[1745103735575,37.80349124,139.67,139.61,5.74229124]
[1745103736276,7.1616,139.66,139.61,5.74229124]
[1745103740082,37.80359124,139.67,139.61,5.74229124]
[1745103740983,7.1615,139.66,139.61,5.74229124]
[1745103742485,37.80349124,139.67,139.61,5.74229124]
[1745103742680,30.64229124,139.67,139.61,5.74229124]
[1745103743984,7.1615,139.66,139.61,5.74229124]
[1745103767206,37.80349124,139.67,139.61,5.74229124]
[1745103767407,30.64229124,139.67,139.61,5.74229124]
[1745103768608,7.1615,139.66,139.61,5.74229124]
[1745103769407,37.80349124,139.67,139.6,24.88]
[1745103769605,32.0612,139.67,139.6,24.88]
[1745103772413,7.1616,139.66,139.6,24.88]
[1745103779613,32.0612,139.67,139.6,24.88]
[1745103780115,7.1615,139.66,139.6,24.88]
[1745103784617,7.1612,139.67,139.6,24.88]
[1745103785616,32.0407,139.68,139.61,5.74229124]
[1745103785813,24.88,139.68,139.61,5.74229124]
[1745103787319,7.1611,139.67,139.61,5.74229124]
[1745103793327,7.1611,139.67,139.65,7.1618]
[1745103794028,32.0407,139.68,139.65,7.1618]
[1745103798730,7.161,139.67,139.65,7.1618]
[1745103798930,24.88,139.68,139.65,7.1618]
[1745103799226,32.0409,139.68,139.65,7.1618]
[1745103799430,24.88,139.68,139.65,7.1618]
[1745103799729,24.88,139.68,139.65,5.74229124]
[1745103800433,24.88,139.68,139.67,7.161]
[1745103801837,7.1597,139.7,139.65,5.74229124]
[1745103805236,38.03966124,139.71,139.65,5.74229124]
[1745103806139,7.1594,139.7,139.65,5.74229124]
[1745103806338,5.74229124,139.69,139.64,5.74229124]
[1745103806638,5.74229124,139.69,139.63,24.88]
[1745103806941,12.90249124,139.69,139.64,5.74229124]
[1745103807139,5.74229124,139.69,139.64,5.74229124]
[1745103809940,7.1607,139.68,139.64,5.74229124]
[1745103810430,32.0407,139.68,139.64,5.74229124]
[1745103811539,24.88,139.68,139.64,5.74229124]
[1745103813140,32.0405,139.68,139.64,5.74229124]
[1745103813342,5.74229124,139.67,139.62,5.74229124]
[1745103813742,7.1617,139.66,139.62,5.74229124]
[1745103815844,12.90349124,139.67,139.62,5.74229124]
[1745103817146,7.1616,139.66,139.62,5.74229124]
[1745103817443,7.1616,139.66,139.6,24.88]
[1745103817645,7.1616,139.66,139.61,5.74229124]
[1745103818747,7.1621,139.65,139.61,5.74229124]
[1745103821548,7.1627,139.64,139.6,24.88]
[1745103821748,7.1627,139.64,139.59,5.74229124]
[1745103822150,7.1631,139.63,139.59,5.74229124]
[1745103825153,7.1627,139.64,139.59,5.74229124]
[1745103825856,7.1631,139.63,139.59,5.74229124]
[1745103826754,7.1628,139.64,139.59,5.74229124]
[1745103831959,7.1631,139.63,139.59,5.74229124]
[1745103836764,7.1638,139.62,139.59,5.74229124]
[1745103838168,7.1641,139.61,139.57,30.62229124]
[1745103838364,24.88,139.62,139.57,30.62229124]
[1745103838559,7.1649,139.6,139.57,5.74229124]
[1745103838759,5.74229124,139.61,139.55,5.74229124]
[1745103839476,7.1656,139.58,139.55,5.74229124]
[1745103842066,7.1653,139.59,139.55,5.74229124]
[1745103842463,7.1653,139.59,139.54,24.88]
[1745103842668,7.1653,139.59,139.55,5.74229124]
[1745103851969,30.62229124,139.59,139.52,2.0044]
[1745103852176,5.74229124,139.55,139.5,5.74229124]
[1745103852476,12.90969124,139.55,139.5,5.74229124]
[1745103854179,7.1677,139.54,139.5,5.74229124]
[1745103857977,12.90969124,139.55,139.5,5.74229124]
[1745103858578,24.88,139.56,139.52,5.74229124]
[1745103858880,24.88,139.56,139.54,5.74229124]
[1745103859181,30.64229124,139.59,139.54,5.74229124]
[1745103859382,7.1659,139.58,139.54,5.74229124]
[1745103870293,7.1661,139.57,139.54,5.74229124]
[1745103870495,7.1661,139.57,139.53,5.74229124]
[1745103873697,5.74229124,139.55,139.41,362.24711068]
[1745103873997,5.74229124,139.53,139.48,5.74229124]
[1745103874196,7.1689,139.52,139.47,5.74229124]
[1745103891819,7.1692,139.51,139.47,5.74229124]
[1745103896519,12.91069124,139.53,139.47,5.74229124]
[1745103896719,7.1684,139.53,139.47,5.74229124]
[1745103897820,7.1687,139.52,139.47,5.74229124]
[1745103901820,5.74229124,139.52,139.47,5.74229124]
[1745103902023,24.9,139.51,139.44,30.7272]
[1745103902224,5.74229124,139.5,139.45,5.74229124]
[1745103902924,7.1706,139.49,139.44,5.74229124]
[1745103903121,5.74229124,139.5,139.44,5.74229124]
[1745103903425,24.9,139.48,139.44,5.74229124]
[1745103904227,32.0708,139.48,139.44,5.74229124]
[1745103904529,24.9,139.48,139.44,5.74229124]
[1745103906830,32.0708,139.48,139.44,5.74229124]
[1745103908327,24.9,139.48,139.44,5.74229124]
[1745103909434,32.0708,139.48,139.44,5.74229124]
[1745103913244,24.9,139.48,139.44,5.74229124]
[1745103914047,32.0708,139.48,139.44,5.74229124]
[1745103918650,24.9,139.48,139.44,5.74229124]
[1745103919046,30.64229124,139.48,139.44,5.74229124]
[1745103919346,37.81329124,139.48,139.44,5.74229124]
[1745103921050,7.1713,139.47,139.42,5.74229124]
[1745103926150,7.1723,139.45,139.37,366.5355]
[1745103926355,5.74229124,139.46,139.4,5.74229124]
[1745103926549,24.9,139.45,139.4,5.74229124]
[1745103926755,5.74229124,139.44,139.4,5.74229124]
[1745103927351,5.74229124,139.44,139.37,5.5355]
[1745103927552,5.74229124,139.44,139.37,11.27779124]
[1745103927951,7.1742,139.42,139.37,11.27779124]
[1745103928154,32.0742,139.42,139.37,11.27779124]
[1745103929055,37.81649124,139.42,139.37,5.74229124]
[1745103931459,7.1743,139.41,139.36,5.74229124]
[1745103931760,5.74229124,139.4,139.36,5.74229124]
[1745103931960,5.74229124,139.4,139.34,5.74229124]
[1745103931961,7.1754,139.39,139.34,5.74229124]
[1745103932160,32.0754,139.39,139.34,5.74229124]
[1745103932362,5.74229124,139.38,139.34,5.74229124]
[1745103932560,12.91839124,139.38,139.32,32.56979124]
[1745103932762,5.74229124,139.38,139.31,5.74229124]
[1745103932961,5.74229124,139.36,139.31,5.74229124]
[1745103933158,30.64229124,139.36,139.31,5.74229124]
[1745103934263,37.81919124,139.36,139.3,5.74229124]
[1745103934560,30.64229124,139.36,139.3,5.74229124]
[1745103938866,24.9,139.36,139.32,5.74229124]
[1745103939164,24.92,139.39,139.34,5.74229124]
[1745103944170,30.66229124,139.39,139.34,5.74229124]
[1745103954979,37.83769124,139.39,139.34,5.74229124]
[1745103959083,24.92,139.39,139.34,5.74229124]
[1745103959385,7.1751,139.4,139.34,5.74229124]
[1745103959684,32.0951,139.4,139.34,5.74229124]
[1745103960482,1.9985,139.41,139.38,5.74229124]
[1745103960689,24.92,139.43,139.38,5.74229124]
[1745103960888,24.92,139.44,139.4,5.74229124]
[1745103963592,575.0919,139.46,139.4,5.74229124]
[1745103965389,567.92,139.46,139.4,5.74229124]
[1745103966794,37.83379124,139.47,139.4,5.74229124]
[1745103966992,24.92,139.47,139.42,5.74229124]
[1745103984915,32.0913,139.47,139.42,5.74229124]
[1745103986418,24.92,139.47,139.42,5.74229124]
[1745103995528,5.74229124,139.46,139.4,5.74229124]
[1745103995723,5.74229124,139.46,139.39,5.74229124]
[1745103995922,5.74229124,139.44,139.39,5.74229124]
[1745103996226,12.91539124,139.44,139.39,5.74229124]
[1745104004524,37.81539124,139.44,139.39,5.74229124]
[1745104004828,7.1737,139.43,139.39,5.74229124]
[1745104005222,3.9669,139.43,139.37,5.74229124]
[1745104005423,7.1743,139.41,139.37,5.74229124]
[1745104005830,5.74229124,139.42,139.37,5.74229124]
[1745104006132,12.91649124,139.42,139.37,5.74229124]
[1745104023847,5.74229124,139.42,139.37,5.74229124]
[1745104025148,12.91619124,139.42,139.37,5.74229124]
[1745104026249,5.74229124,139.42,139.37,5.74229124]
[1745104029851,13.0464,139.43,139.37,5.74229124]
[1745104030146,3.9669,139.43,139.39,5.74229124]
[1745104030351,24.9,139.44,139.41,5.74229124]
[1745104031453,24.9,139.47,139.41,5.74229124]
[1745104032153,32.0715,139.47,139.41,5.74229124]
[1745104032453,24.9,139.47,139.41,5.74229124]
[1745104032952,32.0715,139.47,139.41,5.74229124]
[1745104053879,24.9,139.47,139.43,5.74229124]
[1745104054877,24.9,139.47,139.45,5.74229124]
[1745104055077,32.07,139.5,139.45,5.74229124]
[1745104055376,24.9,139.5,139.45,5.74229124]
[1745104056678,598.74229124,139.53,139.47,5.74229124]
[1745104057271,605.91049124,139.53,139.47,5.74229124]
[1745104064384,598.74229124,139.53,139.47,5.74229124]
[1745104065682,1.24755776,139.6,139.51,5.74229124]
[1745104065882,3.908,139.62,139.57,5.74229124]
[1745104068586,26.9069,139.63,139.59,5.74229124]
[1745104068778,2.0069,139.63,139.59,5.74229124]
[1745104069785,5.74229124,139.65,139.59,5.74229124]
[1745104073188,32.0618,139.66,139.61,5.74229124]
[1745104075493,7.162,139.65,139.61,5.74229124]
[1745104075993,5.74229124,139.65,139.58,24.9]
[1745104076388,5.74229124,139.63,139.58,24.9]
[1745104076893,12.90569124,139.63,139.58,24.9]
[1745104080296,7.1634,139.63,139.59,5.74229124]
[1745104080993,7.1627,139.64,139.59,5.74229124]
[1745104081194,5.74229124,139.65,139.58,30.64229124]
[1745104081391,3.7954,139.63,139.58,30.64229124]
[1745104081896,10.9587,139.63,139.58,30.64229124]
[1745104085495,7.1635,139.62,139.58,30.64229124]
[1745104088494,10.9587,139.63,139.58,30.64229124]
[1745104096400,7.1633,139.63,139.58,30.64229124]
[1745104099796,30.64229124,139.66,139.6,5.74229124]
[1745104100300,7.1623,139.65,139.6,5.74229124]
[1745104102503,32.0617,139.66,139.6,5.74229124]
[1745104103001,32.0617,139.66,139.61,25.16]
[1745104103398,7.162,139.65,139.61,25.16]
[1745104105707,24.9,139.66,139.61,25.16]
[1745104106503,5.74229124,139.65,139.6,5.74229124]
[1745104107002,7.1641,139.61,139.59,25.14]
[1745104109505,7.1638,139.62,139.59,25.14]
[1745104115008,7.12870585,139.62,139.59,25.14]
[1745104115504,7.1633,139.63,139.59,25.14]
[1745104117611,7.1637,139.62,139.59,25.14]
[1745104122817,7.1633,139.63,139.59,25.14]
[1745104123813,5.74229124,139.65,139.59,25.14]
[1745104124116,7.1636,139.62,139.59,25.14]
[1745104127415,5.74229124,139.65,139.59,25.14]
[1745104127914,7.1639,139.62,139.59,25.14]
[1745104128817,7.1641,139.61,139.59,25.14]
[1745104129916,7.1637,139.62,139.59,25.14]
[1745104131416,7.1637,139.62,139.58,5.74229124]
[1745104132017,7.1633,139.63,139.58,5.74229124]
[1745104132813,24.9,139.66,139.6,5.74229124]
[1745104132814,7.1628,139.64,139.6,5.74229124]
[1745104140329,7.1628,139.64,139.6,30.64229124]
[1745104146441,7.1631,139.63,139.6,30.64229124]
[1745104146941,7.1639,139.62,139.58,30.64229124]
[1745104147132,5.74229124,139.65,139.58,30.64229124]
[1745104147640,7.1633,139.63,139.58,30.64229124]
[1745104159550,7.1634,139.63,139.58,30.64229124]
[1745104163956,30.64229124,139.63,139.55,5.7369]
[1745104164154,30.64229124,139.63,139.56,5.74229124]
[1745104164558,7.1651,139.59,139.56,5.74229124]
[1745104165262,7.1656,139.58,139.56,5.74229124]
[1745104165754,7.1652,139.59,139.56,5.74229124]
[1745104167659,24.9,139.6,139.56,5.74229124]
[1745104168057,24.9,139.6,139.55,5.74229124]
[1745104168559,5.74229124,139.59,139.54,5.74229124]
[1745104168759,7.167,139.56,139.53,5.74229124]
[1745104169159,24.9,139.57,139.53,5.74229124]
[1745104169356,32.0663,139.57,139.53,5.74229124]
[1745104170463,30.64229124,139.57,139.52,5.74229124]
[1745104170659,30.64229124,139.57,139.51,5.74229124]
[1745104171159,12.90969124,139.55,139.49,366.9416]
[1745104171360,12.90969124,139.55,139.5,5.74229124]
[1745104174665,7.1678,139.54,139.5,5.74229124]
[1745104175063,5.74229124,139.55,139.5,5.74229124]
[1745104175262,7.1684,139.53,139.49,5.9416]
[1745104175467,25.0,139.54,139.49,5.9416]
[1745104175963,5.74229124,139.53,139.48,30.74229124]
[1745104176164,5.74229124,139.53,139.48,25.0]
[1745104176363,7.1698,139.5,139.47,5.74229124]
[1745104176964,7.1702,139.49,139.46,5.74229124]
[1745104177563,30.74229124,139.51,139.46,5.74229124]
[1745104177966,7.1709,139.48,139.46,5.74229124]
[1745104178169,30.74229124,139.51,139.45,5.743]
[1745104178461,30.74229124,139.51,139.44,12.91499124]
[1745104178666,7.1711,139.48,139.44,12.91499124]
[1745104180167,7.1711,139.48,139.45,7.172]
[1745104185371,12.91269124,139.49,139.44,5.74229124]
[1745104185871,12.91269124,139.49,139.45,7.172]
[1745104186471,7.1708,139.48,139.45,7.172]
[1745104186969,7.1708,139.48,139.44,12.91479124]
[1745104187175,5.74229124,139.49,139.44,5.74229124]
[1745104187471,25.0,139.48,139.42,30.74229124]
[1745104188273,7.1715,139.47,139.44,7.1726]
[1745104196379,5.74229124,139.45,139.33,382.5354]
[1745104196578,25.02,139.44,139.38,5.74229124]
[1745104197079,7.1736,139.43,139.38,5.74229124]
[1745104197280,25.02,139.44,139.38,5.74229124]
[1745104197678,7.1739,139.42,139.38,5.74229124]
[1745104198176,7.1744,139.41,139.38,5.74229124]
[1745104200284,7.1748,139.4,139.38,5.74229124]
[1745104200979,7.1754,139.39,139.37,5.74229124]
[1745104201184,7.1754,139.39,139.36,5.74229124]
[1745104202588,7.1754,139.39,139.34,30.9354]
[1745104202883,7.1754,139.39,139.35,5.74229124]
[1745104203981,30.84229124,139.41,139.35,5.74229124]
[1745104204184,5.74229124,139.39,139.35,5.74229124]
[1745104204586,7.1763,139.38,139.35,5.74229124]
[1745104205890,7.1756,139.39,139.35,5.74229124]
[1745104206290,30.84229124,139.41,139.34,5.74229124]
[1745104206588,7.1761,139.38,139.34,5.74229124]
[1745104206992,7.1761,139.38,139.31,592.9]
[1745104207185,12.91789124,139.39,139.34,5.74229124]
[1745104207783,7.1759,139.38,139.34,5.74229124]
[1745104212094,7.1764,139.37,139.34,5.74229124]
[1745104215697,7.1762,139.38,139.34,5.74229124]
[1745104221600,5.74229124,139.39,139.34,5.74229124]
[1745104222498,7.1762,139.38,139.34,5.74229124]
[1745104223295,5.74229124,139.37,139.31,25.12]
[1745104223500,5.74229124,139.37,139.3,5.74229124]
[1745104224002,7.178,139.34,139.3,5.74229124]
[1745104225302,7.1785,139.33,139.3,5.74229124]
[1745104226401,7.1791,139.32,139.28,11.36339124]
[1745104227001,7.1791,139.32,139.28,9.51329124]
[1745104227299,7.1791,139.32,139.28,7.60369124]
[1745104227499,7.1791,139.32,139.28,5.74229124]
[1745104227700,5.74229124,139.33,139.28,5.74229124]
[1745104227701,7.1796,139.31,139.28,5.74229124]
[1745104228296,32.2992,139.32,139.28,5.74229124]
[1745104228701,25.12,139.32,139.28,5.74229124]
[1745104236406,32.299,139.32,139.28,5.74229124]
[1745104237802,25.12,139.32,139.28,5.74229124]
[1745104251312,25.12,139.32,139.27,5.74229124]
[1745104256914,5.74229124,139.31,139.26,25.12]
[1745104257318,12.92179124,139.31,139.26,25.12]
[1745104259423,5.74229124,139.31,139.26,25.12]
[1745104260223,5.74229124,139.31,139.27,5.74229124]
[1745104260423,28.8733,139.32,139.27,5.74229124]
[1745104262726,25.12,139.32,139.27,5.74229124]
[1745104263028,25.12,139.32,139.29,5.74229124]